fUST/lending_fUST_20250802
["ID","MTS","AMOUNT","RATE_DAILY","PERIOD"]
[376731744,1754091045052,-460.0,0.00019787,2]
[376731746,1754091045061,-460.0,0.00019787,2]
[376731748,1754091045070,-460.0,0.00019787,2]
[376731750,1754091045079,-767.29,0.00019787,2]
[376731752,1754091045088,-1087.58,0.00019787,2]
[376731754,1754091045098,-683.87,0.00019787,2]
[376731756,1754091045107,-1381.02,0.00019787,2]
[376731758,1754091045117,-460.0,0.00019787,2]
[376731760,1754091045128,-525.6,0.00019787,2]
[376731762,1754091045138,-460.0,0.00019787,2]
[376731764,1754091045147,-460.0,0.00019787,2]
[376731766,1754091045156,-460.0,0.00019787,2]
[376731768,1754091045165,-460.0,0.00019787,2]
[376731770,1754091045174,-657.93,0.00019787,2]
[376731772,1754091045184,-460.0,0.00019787,2]
[376731774,1754091045193,-472.11,0.00019787,2]
[376731776,1754091045202,-460.0,0.00019787,2]
[376731778,1754091045211,-654.22,0.00019787,2]
[376731780,1754091045220,-1062.48,0.00019787,2]
[376731782,1754091045229,-460.0,0.00019787,2]
[376731784,1754091045238,-460.0,0.00019787,2]
[376731786,1754091045247,-460.0,0.00019788,2]
[376731788,1754091045257,-460.0,0.00019788,2]
[376731790,1754091045266,-534.57,0.00019788,2]
[376731792,1754091045275,-460.0,0.00019788,2]
[376731794,1754091045285,-460.0,0.00019788,2]
[376731796,1754091045294,-460.0,0.00019788,2]
[376731798,1754091045303,-460.0,0.00019788,2]
[376731800,1754091045313,-460.0,0.00019788,2]
[376731802,1754091045322,-6339.86,0.00019788,2]
[376731804,1754091045331,-460.0,0.00019788,2]
[376731806,1754091045341,-460.0,0.00019788,2]
[376731808,1754091045351,-460.0,0.00019788,2]
[376731810,1754091045361,-460.0,0.00019788,2]
[376731823,1754091045471,-460.0,0.00019788,2]
[376731825,1754091045482,-460.0,0.00019788,2]
[376731827,1754091045491,-604.16036438,0.00019788,2]
[376731829,1754091045501,-460.0,0.00019788,2]
[376731831,1754091045510,-460.36,0.00019788,2]
[376731833,1754091045520,-460.0,0.00019788,2]
[376731835,1754091045529,-3261.32,0.00019788,2]
[376731837,1754091045539,-460.0,0.00019788,2]
[376731839,1754091045548,-460.0,0.00019788,2]
[376731841,1754091045557,-854.96,0.00019788,2]
[376731843,1754091045566,-460.0,0.00019788,2]
[376731845,1754091045575,-582.52,0.00019788,2]
[376731847,1754091045584,-460.0,0.00019788,2]
[376731849,1754091045593,-460.0,0.00019788,2]
[376731851,1754091045603,-460.0,0.00019788,2]
[376731852,1754091045613,-236.18774172,0.00019788,2]
[376731855,1754091045623,-460.0,0.00019788,2]
[376731857,1754091045633,-339.75625217,0.00019788,2]
[376731859,1754091045643,-496.98410143,0.00019788,2]
[376731861,1754091045653,-946.35,0.00019788,2]
[376731862,1754091045662,-587.9,0.00019788,2]
[376731864,1754091045671,-460.0,0.00019788,2]
[376731866,1754091045681,-534.27,0.00019788,2]
[376731869,1754091045691,-460.0,0.00019788,2]
[376731870,1754091045700,-460.0,0.00019788,2]
[376731872,1754091045710,-460.0,0.00019788,2]
[376731875,1754091045721,-460.0,0.00019788,2]
[376731877,1754091045731,-378.44005049,0.00019788,2]
[376731879,1754091045740,-460.0,0.00019788,2]
[376731881,1754091045751,-460.0,0.00019788,2]
[376731882,1754091045760,-460.0,0.00019788,2]
[376731885,1754091045770,-460.0,0.00019788,2]
[376731886,1754091045779,-460.0,0.00019788,2]
[376731888,1754091045789,-460.0,0.00019788,2]
[376731890,1754091045798,-612.02,0.00019788,2]
[376731893,1754091045807,-460.0,0.00019788,2]
[376731894,1754091045817,-516.09,0.00019788,2]
[376731896,1754091045827,-865.73,0.00019788,2]
[376731899,1754091045836,-545.71,0.00019788,2]
[376731901,1754091045846,-689.51,0.00019788,2]
[376731903,1754091045855,-1842.57,0.00019788,2]
[376731904,1754091045865,-460.0,0.00019788,2]
[376731906,1754091045876,-460.0,0.00019788,2]
[376731909,1754091045885,-460.0,0.00019788,2]
[376731910,1754091045895,-556.43,0.00019788,2]
[376731912,1754091045905,-460.0,0.00019788,2]
[376731915,1754091045916,-460.0,0.00019788,2]
[376731917,1754091045926,-460.0,0.00019788,2]
[376731919,1754091045936,-460.0,0.00019788,2]
[376731921,1754091045945,-460.0,0.00019788,2]
[376731923,1754091045954,-460.0,0.00019788,2]
[376731925,1754091045963,-546.06,0.00019788,2]
[376731927,1754091045973,-468.36,0.00019788,2]
[376731929,1754091045982,-460.0,0.00019788,2]
[376731931,1754091045991,-460.0,0.00019788,2]
[376731933,1754091046001,-460.0,0.00019788,2]
[376731935,1754091046011,-460.0,0.00019788,2]
[376731937,1754091046021,-460.0,0.00019788,2]
[376731939,1754091046031,-920.78,0.00019788,2]
[376731941,1754091046040,-460.0,0.00019788,2]
[376731943,1754091046049,-460.0,0.00019788,2]
[376731945,1754091046059,-460.0,0.00019788,2]
[376731947,1754091046069,-691.07,0.00019788,2]
[376731949,1754091046078,-408.2188509,0.00019788,2]
[376731951,1754091046088,-460.0,0.00019788,2]
[376731953,1754091046097,-500.0,0.00019788,2]
[376731955,1754091046106,-500.0,0.00019788,2]
[376731957,1754091046116,-527.45451358,0.00019788,2]
[376731959,1754091046125,-500.0,0.00019788,2]
[376731961,1754091046134,-500.0,0.00019788,2]
[376731963,1754091046145,-926.42,0.00019789,2]
[376731965,1754091046155,-460.0,0.00019789,2]
[376731967,1754091046164,-460.0,0.00019789,2]
[376731969,1754091046173,-460.0,0.00019789,2]
[376731971,1754091046182,-460.0,0.00019789,2]
[376731973,1754091046192,-460.0,0.00019789,2]
[376731975,1754091046201,-460.0,0.00019789,2]
[376731977,1754091046210,-460.0,0.00019789,2]
[376731979,1754091046219,-1004.42,0.00019789,2]
[376731981,1754091046228,-693.44,0.00019789,2]
[376731983,1754091046237,-511.5,0.00019789,2]
[376731985,1754091046247,-460.0,0.00019789,2]
[376731987,1754091046256,-460.0,0.00019789,2]
[376731989,1754091046265,-1029.66,0.00019789,2]
[376731991,1754091046274,-460.0,0.00019789,2]
[376731993,1754091046284,-460.0,0.00019789,2]
[376731995,1754091046293,-462.19,0.00019789,2]
[376731997,1754091046302,-460.0,0.00019789,2]
[376731999,1754091046311,-460.0,0.00019789,2]
[376732001,1754091046322,-846.17,0.00019789,2]
[376732003,1754091046332,-460.0,0.00019789,2]
[376732005,1754091046341,-460.0,0.00019789,2]
[376732007,1754091046350,-621.67,0.00019789,2]
[376732009,1754091046360,-924.56,0.00019789,2]
[376732011,1754091046369,-191.71425782,0.00019789,2]
[376732013,1754091046378,-566.98,0.00019789,2]
[376732015,1754091046388,-1675.56,0.00019789,2]
[376732017,1754091046400,-460.0,0.00019789,2]
[376732019,1754091046414,-460.0,0.00019789,2]
[376732021,1754091046424,-460.0,0.00019789,2]
[376732023,1754091046433,-460.0,0.00019789,2]
[376732025,1754091046444,-1419.71,0.00019789,2]
[376732027,1754091046453,-460.0,0.00019789,2]
[376732029,1754091046462,-460.0,0.00019789,2]
[376732031,1754091046476,-460.0,0.00019789,2]
[376732032,1754091046490,-460.0,0.00019789,2]
[376732034,1754091046501,-460.0,0.00019789,2]
[376732036,1754091046512,-460.0,0.00019789,2]
[376732038,1754091046522,-460.0,0.00019789,2]
[376732040,1754091046532,-460.0,0.0001979,2]
[376732043,1754091046542,-460.0,0.0001979,2]
[376732045,1754091046551,-557.79,0.0001979,2]
[376732047,1754091046561,-460.0,0.0001979,2]
[376732049,1754091046572,-460.0,0.0001979,2]
[376732051,1754091046582,-1508.75,0.0001979,2]
[376732052,1754091046592,-460.0,0.0001979,2]
[376732054,1754091046602,-460.0,0.0001979,2]
[376732056,1754091046612,-460.0,0.0001979,2]
[376732058,1754091046622,-460.0,0.0001979,2]
[376732060,1754091046631,-478.48838928,0.0001979,2]
[376732062,1754091046640,-460.0,0.0001979,2]
[376732065,1754091046650,-460.0,0.0001979,2]
[376732067,1754091046660,-554.96,0.0001979,2]
[376732068,1754091046672,-460.0,0.0001979,2]
[376732070,1754091046681,-460.0,0.0001979,2]
[376732073,1754091046691,-460.0,0.0001979,2]
[376732075,1754091046701,-1916.86,0.0001979,2]
[376732076,1754091046713,-727.88,0.00019791,2]
[376732078,1754091046723,-460.0,0.00019791,2]
[376732080,1754091046733,-460.0,0.00019791,2]
[376732082,1754091046743,-460.0,0.00019791,2]
[376732084,1754091046753,-535.37,0.00019791,2]
[376732087,1754091046766,-2985.37,0.00019791,2]
[376732089,1754091046776,-460.0,0.00019791,2]
[376732090,1754091046785,-460.0,0.00019791,2]
[376732092,1754091046794,-460.0,0.00019791,2]
[376732094,1754091046804,-1912.99,0.00019792,2]
[376732096,1754091046815,-460.0,0.00019792,2]
[376732098,1754091046825,-460.0,0.00019792,2]
[376732100,1754091046835,-151.0,0.000198,2]
[376732103,1754091046845,-1117.81518716,0.00019878,2]
[376732104,1754091046855,-151.0,0.000199,2]
[376732105,1754091046864,-653.46840836,0.000199,2]
[376732106,1754091046873,-47912.24151411,0.0001999,2]
[376732107,1754091046882,-440.57843255,0.00020042,2]
[376732108,1754091046893,-900.0,0.00020055,2]
[376732111,1754091046903,-530.25,0.0002006,2]
[376732112,1754091046912,-526.08,0.0002006,2]
[376732114,1754091046923,-904.57,0.0002006,2]
[376732116,1754091046933,-460.0,0.0002006,2]
[376732118,1754091046943,-460.0,0.0002006,2]
[376732120,1754091046952,-460.0,0.0002006,2]
[376732122,1754091046962,-1626.44,0.00020061,2]
[376732124,1754091046971,-460.0,0.00020061,2]
[376732126,1754091046981,-650.75,0.00020061,2]
[376732128,1754091046990,-460.0,0.00020061,2]
[376732130,1754091046999,-460.0,0.00020061,2]
[376732132,1754091047009,-460.0,0.00020061,2]
[376732134,1754091047019,-767.29,0.00020061,2]
[376732136,1754091047028,-1087.58,0.00020061,2]
[376732137,1754091047038,-683.87,0.00020061,2]
[376732138,1754091047047,-1381.02,0.00020061,2]
[376732139,1754091047056,-460.0,0.00020061,2]
[376732140,1754091047067,-525.6,0.00020061,2]
[376732142,1754091047076,-460.0,0.00020061,2]
[376732143,1754091047086,-460.0,0.00020061,2]
[376732144,1754091047095,-460.0,0.00020061,2]
[376732146,1754091047104,-460.0,0.00020061,2]
[376732148,1754091047113,-657.93,0.00020061,2]
[376732150,1754091047123,-460.0,0.00020061,2]
[376732152,1754091047132,-472.11,0.00020061,2]
[376732154,1754091047142,-460.0,0.00020061,2]
[376732155,1754091047151,-654.22,0.00020061,2]
[376732157,1754091047160,-1062.48,0.00020061,2]
[376732159,1754091047169,-460.0,0.00020061,2]
[376732161,1754091047177,-460.0,0.00020061,2]
[376732163,1754091047186,-460.0,0.00020062,2]
[376732165,1754091047195,-460.0,0.00020062,2]
[376732167,1754091047205,-534.57,0.00020062,2]
[376732169,1754091047214,-533.72219497,0.00020062,2]
[376732170,1754091047222,-460.0,0.00020062,2]
[376732171,1754091047231,-427.5892615,0.00020062,2]
[376732172,1754091047241,-460.0,0.00020062,2]
[376732173,1754091047249,-460.0,0.00020062,2]
[376732174,1754091047258,-460.0,0.00020062,2]
[376732175,1754091047267,-6339.86,0.00020062,2]
[376732176,1754091047277,-460.0,0.00020062,2]
[376732177,1754091047286,-460.0,0.00020062,2]
[376732178,1754091047296,-460.0,0.00020062,2]
[376732179,1754091047305,-460.0,0.00020062,2]
[376732180,1754091047315,-460.0,0.00020062,2]
[376732181,1754091047325,-460.36,0.00020062,2]
[376732182,1754091047334,-460.0,0.00020062,2]
[376732183,1754091047343,-3261.32,0.00020062,2]
[376732184,1754091047352,-460.0,0.00020062,2]
[376732185,1754091047361,-479.02011518,0.00020062,2]
[376732186,1754091047371,-854.96,0.00020062,2]
[376732187,1754091047380,-460.0,0.00020062,2]
[376732188,1754091047389,-582.52,0.00020062,2]
[376732189,1754091047401,-460.0,0.00020062,2]
[376732190,1754091047411,-460.0,0.00020062,2]
[376732191,1754091047421,-460.0,0.00020062,2]
[376732192,1754091047430,-460.0,0.00020062,2]
[376732193,1754091047439,-946.35,0.00020062,2]
[376732194,1754091047450,-587.9,0.00020062,2]
[376732195,1754091047459,-460.0,0.00020062,2]
[376732196,1754091047469,-534.27,0.00020062,2]
[376732197,1754091047480,-460.0,0.00020062,2]
[376732198,1754091047489,-460.0,0.00020062,2]
[376732199,1754091047498,-460.0,0.00020062,2]
[376732200,1754091047508,-460.0,0.00020062,2]
[376732201,1754091047518,-460.0,0.00020062,2]
[376732202,1754091047527,-460.0,0.00020062,2]
[376732203,1754091047535,-460.0,0.00020062,2]
[376732204,1754091047544,-460.0,0.00020062,2]
[376732205,1754091047553,-460.0,0.00020062,2]
[376732206,1754091047562,-460.0,0.00020062,2]
[376732207,1754091047573,-612.02,0.00020062,2]
[376732208,1754091047582,-460.0,0.00020062,2]
[376732209,1754091047591,-516.09,0.00020062,2]
[376732210,1754091047599,-865.73,0.00020062,2]
[376732211,1754091047608,-545.71,0.00020062,2]
[376732212,1754091047617,-689.51,0.00020062,2]
[376732213,1754091047626,-1842.57,0.00020062,2]
[376732214,1754091047635,-460.0,0.00020062,2]
[376732215,1754091047645,-460.0,0.00020062,2]
[376732216,1754091047655,-460.0,0.00020062,2]
[376732217,1754091047664,-556.43,0.00020062,2]
[376732218,1754091047675,-460.0,0.00020062,2]
[376732219,1754091047685,-531.19618983,0.00020062,2]
[376732220,1754091047694,-460.0,0.00020062,2]
[376732221,1754091047704,-460.0,0.00020062,2]
[376732222,1754091047714,-460.0,0.00020062,2]
[376732223,1754091047723,-460.0,0.00020062,2]
[376732224,1754091047733,-546.06,0.00020062,2]
[376732225,1754091047743,-468.36,0.00020062,2]
[376732226,1754091047752,-460.0,0.00020062,2]
[376732227,1754091047762,-460.0,0.00020062,2]
[376732228,1754091047772,-460.0,0.00020062,2]
[376732229,1754091047875,-460.0,0.00020062,2]
[376732230,1754091047886,-460.0,0.00020062,2]
[376732231,1754091047896,-920.78,0.00020062,2]
[376732232,1754091047906,-264.94484792,0.00020062,2]
[376732233,1754091047916,-460.0,0.00020062,2]
[376732234,1754091047926,-460.0,0.00020062,2]
[376732235,1754091047936,-691.07,0.00020062,2]
[376732236,1754091047946,-460.0,0.00020062,2]
[376732237,1754091047957,-926.42,0.00020063,2]
[376732238,1754091047966,-460.0,0.00020063,2]
[376732239,1754091047975,-460.0,0.00020063,2]
[376732240,1754091047985,-460.0,0.00020063,2]
[376732241,1754091047994,-460.0,0.00020063,2]
[376732242,1754091048004,-460.0,0.00020063,2]
[376732243,1754091048013,-460.0,0.00020063,2]
[376732244,1754091048023,-1004.42,0.00020063,2]
[376732245,1754091048032,-693.44,0.00020063,2]
[376732246,1754091048042,-511.5,0.00020063,2]
[376732247,1754091048051,-460.0,0.00020063,2]
[376732248,1754091048061,-460.0,0.00020063,2]
[376732249,1754091048073,-1029.66,0.00020063,2]
[376732250,1754091048083,-460.0,0.00020063,2]
[376732252,1754091048092,-460.0,0.00020063,2]
[376732254,1754091048102,-462.19,0.00020063,2]
[376732256,1754091048113,-460.0,0.00020063,2]
[376732258,1754091048123,-460.0,0.00020063,2]
[376732260,1754091048133,-846.17,0.00020063,2]
[376732262,1754091048143,-460.0,0.00020063,2]
[376732264,1754091048152,-460.0,0.00020063,2]
[376732266,1754091048162,-621.67,0.00020063,2]
[376732268,1754091048171,-924.56,0.00020063,2]
[376732270,1754091048180,-566.98,0.00020063,2]
[376732272,1754091048189,-1675.56,0.00020063,2]
[376732274,1754091048199,-460.0,0.00020063,2]
[376732276,1754091048208,-460.0,0.00020063,2]
[376732278,1754091048217,-460.0,0.00020063,2]
[376732280,1754091048227,-460.0,0.00020063,2]
[376732282,1754091048237,-1419.71,0.00020063,2]
[376732284,1754091048246,-327.73905616,0.00020063,2]
[376732286,1754091048256,-460.0,0.00020063,2]
[376732288,1754091048267,-460.0,0.00020063,2]
[376732290,1754091048276,-460.0,0.00020063,2]
[376732292,1754091048286,-460.0,0.00020063,2]
[376732294,1754091048295,-460.0,0.00020063,2]
[376732296,1754091048305,-460.0,0.00020063,2]
[376732298,1754091048316,-460.0,0.00020064,2]
[376732299,1754091048326,-557.79,0.00020064,2]
[376732301,1754091048336,-460.0,0.00020064,2]
[376732303,1754091048346,-460.0,0.00020064,2]
[376732306,1754091048356,-1508.75,0.00020064,2]
[376732308,1754091048366,-460.0,0.00020064,2]
[376732310,1754091048375,-460.0,0.00020064,2]
[376732311,1754091048385,-460.0,0.00020064,2]
[376732313,1754091048395,-460.0,0.00020064,2]
[376732315,1754091048408,-460.0,0.00020064,2]
[376732317,1754091048418,-460.0,0.00020064,2]
[376732319,1754091048428,-554.96,0.00020064,2]
[376732321,1754091048438,-460.0,0.00020064,2]
[376732323,1754091048447,-460.0,0.00020064,2]
[376732325,1754091048457,-460.0,0.00020064,2]
[376732327,1754091048466,-151.0,0.00020064,2]
[376732329,1754091048476,-1916.86,0.00020064,2]
[376732331,1754091048485,-727.88,0.00020065,2]
[376732333,1754091048495,-460.0,0.00020065,2]
[376732335,1754091048505,-460.0,0.00020065,2]
[376732337,1754091048514,-460.0,0.00020065,2]
[376732339,1754091048524,-535.37,0.00020065,2]
[376732341,1754091048533,-2985.37,0.00020065,2]
[376732343,1754091048543,-460.0,0.00020065,2]
[376732345,1754091048552,-460.0,0.00020065,2]
[376732347,1754091048562,-460.0,0.00020065,2]
[376732349,1754091048572,-1912.99,0.00020066,2]
[376732351,1754091048582,-460.0,0.00020066,2]
[376732353,1754091048591,-460.0,0.00020066,2]
[376732355,1754091048600,-500.0,0.00020073,2]
[376732357,1754091048610,-500.0,0.00020073,2]
[376732359,1754091048621,-500.0,0.00020073,2]
[376732361,1754091048630,-500.0,0.00020073,2]
[376732363,1754091048640,-500.0,0.00020073,2]
[376732365,1754091048650,-500.0,0.00020073,2]
[376732366,1754091048660,-500.0,0.00020073,2]
[376732368,1754091048669,-500.0,0.00020073,2]
[376732370,1754091048679,-500.0,0.00020073,2]
[376732372,1754091048691,-151.0,0.000201,4]
[376732374,1754091048700,-151.0,0.000201,3]
[376732376,1754091048709,-546.40367112,0.00020101,2]
[376732378,1754091048719,-1000.0,0.00020121,2]
[376732380,1754091048729,-653.46840815,0.00020176,2]
[376732382,1754091048738,-151.0,0.00020289,2]
[376732384,1754091048747,-151.0,0.00020289,2]
[376732386,1754091048757,-151.0,0.00020289,2]
[376732388,1754091048766,-151.0,0.00020289,2]
[376732390,1754091048776,-151.0,0.00020289,2]
[376732392,1754091048785,-151.0,0.00020289,2]
[376732394,1754091048794,-151.0,0.00020289,2]
[376732396,1754091048803,-151.0,0.00020289,2]
[376732398,1754091048814,-151.0,0.00020289,2]
[376732400,1754091048824,-151.0,0.00020289,2]
[376732401,1754091048833,-151.0,0.00020289,2]
[376732403,1754091048842,-151.0,0.00020289,2]
[376732405,1754091048852,-151.0,0.00020289,2]
[376732407,1754091048861,-151.0,0.00020289,2]
[376732409,1754091048870,-151.0,0.00020289,2]
[376732411,1754091048879,-151.0,0.00020289,2]
[376732413,1754091048888,-2030.296672,0.00020289,2]
[376732415,1754091048898,-500.0,0.00020289,2]
[376732417,1754091048908,-151.0,0.00020289,2]
[376732419,1754091048917,-151.0,0.00020289,2]
[376732421,1754091048926,-500.0,0.00020289,2]
[376732423,1754091048935,-151.0,0.00020289,2]
[376732425,1754091048944,-151.0,0.00020289,2]
[376732427,1754091048954,-500.0,0.00020289,2]
[376732429,1754091048963,-151.0,0.00020289,2]
[376732431,1754091048972,-500.0,0.00020289,2]
[376732433,1754091048981,-151.0,0.00020289,2]
[376732435,1754091048990,-500.0,0.00020289,2]
[376732436,1754091049000,-151.0,0.00020289,2]
[376732438,1754091049009,-500.0,0.00020289,2]
[376732440,1754091049018,-151.0,0.00020289,2]
[376732442,1754091049027,-500.0,0.00020289,2]
[376732444,1754091049036,-151.0,0.00020289,2]
[376732446,1754091049046,-151.0,0.00020289,2]
[376732448,1754091049056,-500.0,0.00020289,2]
[376732450,1754091049065,-151.0,0.00020289,2]
[376732452,1754091049075,-151.0,0.00020289,2]
[376732454,1754091049084,-151.0,0.00020289,2]
[376732456,1754091049093,-151.0,0.00020289,2]
[376732458,1754091049102,-500.0,0.00020289,2]
[376732460,1754091049111,-151.0,0.00020289,2]
[376732462,1754091049120,-500.0,0.00020289,2]
[376732464,1754091049129,-500.0,0.00020289,2]
[376732466,1754091049138,-151.0,0.00020289,2]
[376732468,1754091049147,-151.0,0.00020289,2]
[376732470,1754091049157,-151.0,0.00020289,2]
[376732472,1754091049166,-151.0,0.00020289,2]
[376732474,1754091049175,-151.0,0.00020289,2]
[376732476,1754091049185,-151.0,0.00020289,2]
[376732478,1754091049193,-151.0,0.00020289,2]
[376732479,1754091049202,-151.0,0.00020289,2]
[376732481,1754091049211,-151.0,0.00020289,2]
[376732482,1754091049220,-151.0,0.00020289,2]
[376732483,1754091049230,-151.0,0.00020289,2]
[376732484,1754091049240,-151.0,0.00020289,2]
[376732485,1754091049249,-151.0,0.00020289,2]
[376732486,1754091049258,-151.0,0.00020289,2]
[376732487,1754091049267,-151.0,0.00020289,2]
[376732488,1754091049277,-151.0,0.00020289,2]
[376732489,1754091049286,-151.0,0.00020289,2]
[376732490,1754091049296,-151.0,0.00020289,2]
[376732491,1754091049305,-151.0,0.000203,3]
[376732492,1754091049315,-1000.0,0.00020321,2]
[376732493,1754091049325,-632.89791953,0.00020321,2]
[376732494,1754091049334,-518.93778573,0.00020321,2]
[376732495,1754091049344,-530.25,0.00020334,2]
[376732496,1754091049353,-526.08,0.00020334,2]
[376732497,1754091049363,-904.57,0.00020334,2]
[376732498,1754091049372,-460.0,0.00020334,2]
[376732499,1754091049381,-264.73307654,0.00020334,2]
[376732500,1754091049390,-460.0,0.00020334,2]
[376732501,1754091049403,-1626.44,0.00020335,2]
[376732502,1754091049413,-273.46133159,0.00020335,2]
[376732503,1754091049422,-650.75,0.00020335,2]
[376732504,1754091049430,-460.0,0.00020335,2]
[376732505,1754091049439,-460.0,0.00020335,2]
[376732506,1754091049450,-767.29,0.00020335,2]
[376732507,1754091049459,-1087.58,0.00020335,2]
[376732508,1754091049468,-683.87,0.00020335,2]
[376732509,1754091049479,-1381.02,0.00020335,2]
[376732510,1754091049488,-525.6,0.00020335,2]
[376732511,1754091049498,-470.75757574,0.00020335,2]
[376732512,1754091049507,-460.0,0.00020335,2]
[376732513,1754091049516,-460.0,0.00020335,2]
[376732514,1754091049525,-657.93,0.00020335,2]
[376732515,1754091049535,-460.0,0.00020335,2]
[376732516,1754091049547,-472.11,0.00020335,2]
[376732517,1754091049557,-460.0,0.00020335,2]
[376732518,1754091049566,-654.22,0.00020335,2]
[376732519,1754091049576,-1062.48,0.00020335,2]
[376732520,1754091049586,-460.0,0.00020335,2]
[376732521,1754091049595,-460.0,0.00020335,2]
[376732522,1754091049604,-460.0,0.00020336,2]
[376732523,1754091049614,-460.0,0.00020336,2]
[376732524,1754091049623,-534.57,0.00020336,2]
[376732525,1754091049632,-460.0,0.00020336,2]
[376732526,1754091049642,-460.0,0.00020336,2]
[376732527,1754091049651,-460.0,0.00020336,2]
[376732528,1754091049661,-6339.86,0.00020336,2]
[376732529,1754091049670,-460.0,0.00020336,2]
[376732530,1754091049680,-460.0,0.00020336,2]
[376732531,1754091049689,-460.0,0.00020336,2]
[376732532,1754091049698,-460.0,0.00020336,2]
[376732533,1754091049708,-460.36,0.00020336,2]
[376732534,1754091049717,-460.0,0.00020336,2]
[376732535,1754091049726,-3261.32,0.00020336,2]
[376732536,1754091049735,-460.0,0.00020336,2]
[376732537,1754091049744,-854.96,0.00020336,2]
[376732538,1754091049753,-460.0,0.00020336,2]
[376732539,1754091049762,-582.52,0.00020336,2]
[376732540,1754091049771,-460.0,0.00020336,2]
[376732541,1754091049781,-460.0,0.00020336,2]
[376732542,1754091049790,-460.0,0.00020336,2]
[376732543,1754091049798,-946.35,0.00020336,2]
[376732544,1754091049808,-587.9,0.00020336,2]
[376732545,1754091049817,-460.0,0.00020336,2]
[376732546,1754091049827,-534.27,0.00020336,2]
[376732547,1754091049836,-460.0,0.00020336,2]
[376732548,1754091049846,-460.0,0.00020336,2]
[376732549,1754091049855,-460.0,0.00020336,2]
[376732550,1754091049864,-460.0,0.00020336,2]
[376732551,1754091049873,-612.02,0.00020336,2]
[376732552,1754091049882,-460.0,0.00020336,2]
[376732553,1754091049891,-516.09,0.00020336,2]
[376732554,1754091049901,-865.73,0.00020336,2]
[376732555,1754091049910,-545.71,0.00020336,2]
[376732556,1754091049919,-689.51,0.00020336,2]
[376732557,1754091049928,-1842.57,0.00020336,2]
[376732558,1754091049937,-460.0,0.00020336,2]
[376732559,1754091049947,-556.43,0.00020336,2]
[376732560,1754091049957,-460.0,0.00020336,2]
[376732561,1754091049967,-360.90946372,0.00020336,2]
[376732562,1754091050083,-460.0,0.00020336,2]
[376732563,1754091050093,-460.0,0.00020336,2]
[376732564,1754091050103,-546.06,0.00020336,2]
[376732565,1754091050112,-468.36,0.00020336,2]
[376732566,1754091050122,-460.0,0.00020336,2]
[376732567,1754091050131,-460.0,0.00020336,2]
[376732568,1754091050140,-460.0,0.00020336,2]